bitfinex-derivatives/quotes_SOLF0:USTF0_20240924
["timestamp","ask_amount","ask_price","bid_price","bid_amount"]
[1727179564328,3.4043,146.88,146.86,12.8446]
[1727179564730,3.4043,146.88,146.86,9.44]
[1727179566133,3.4045,146.87,146.85,12.8448]
[1727179566334,3.4045,146.87,146.85,3.4048]
[1727179566534,14.71,146.9,146.73,10.26755925]
[1727179566836,14.71,146.9,146.81,14.71]
[1727179567028,14.71,146.9,146.81,18.05843046]
[1727179567339,14.71,146.9,146.81,14.71]
[1727179567733,3.4049,146.86,146.83,3.4053]
[1727179568131,14.71,146.91,146.81,14.71]
[1727179568539,3.4046,146.87,146.84,3.4051]
[1727179568737,14.71,146.91,146.83,14.71]
[1727179568942,3.4042,146.89,146.86,3.4047]
[1727179569248,4.0979,146.92,146.85,14.71]
[1727179569544,3.4044,146.88,146.85,18.1149]
[1727179570135,3.4044,146.88,146.85,3.4049]
[1727179570342,14.71,146.9,146.82,1.4011]
[1727179570539,14.71,146.9,146.8,14.71]
[1727179570743,3.4045,146.87,146.83,3.4052]
[1727179571243,14.71,146.9,146.83,3.4052]
[1727179571441,3.4049,146.86,146.83,3.4052]
[1727179572144,14.71,146.9,146.82,3.4056]
[1727179572352,14.71,146.9,146.8,14.71]
[1727179572550,14.71,146.9,146.82,14.71]
[1727179572844,4.0979,146.92,146.84,14.71]
[1727179573644,3.4042,146.89,146.86,3.4046]
[1727179576047,3.4042,146.89,146.84,14.71]
[1727179576349,3.4039,146.9,146.86,14.71]
[1727179577045,3.4039,146.9,146.87,3.4043]
[1727179577544,3.4037,146.91,146.88,3.4041]
[1727179577940,4.8159,146.92,146.86,14.71]
[1727179578139,1.4125,146.92,146.86,14.71]
[1727179578842,3.4036,146.91,146.88,3.4041]
[1727179579846,3.4038,146.9,146.87,3.4044]
[1727179580146,1.4125,146.92,146.86,14.71]
[1727179580345,3.4037,146.91,146.88,3.4041]
[1727179581742,3.4036,146.91,146.88,3.4041]
[1727179582549,3.4036,146.91,146.89,3.404]
[1727179582749,1.4125,146.92,146.89,3.404]
[1727179583651,4.8161,146.92,146.89,3.404]
[1727179583953,1.4125,146.92,146.89,3.404]
[1727179584149,3.4036,146.91,146.88,3.4042]
[1727179584854,6.8035,147.0,146.88,14.71]
[1727179585059,3.39871952,146.97,146.88,14.71]
[1727179585256,3.39871952,146.97,146.9,14.71]
[1727179585454,3.4028,146.95,146.92,3.4032]
[1727179586154,3.4029,146.94,146.92,3.4032]
[1727179586456,9.42,146.96,146.91,12.8235]
[1727179587250,3.403,146.94,146.91,12.8235]
[1727179587446,9.42,146.96,146.91,12.8235]
[1727179587961,3.403,146.94,146.91,12.8235]
[1727179588459,3.4031,146.94,146.91,12.8235]
[1727179589261,3.4031,146.93,146.91,12.8235]
[1727179590352,3.403,146.94,146.91,12.8235]
[1727179591357,3.4028,146.95,146.92,12.8232]
[1727179591559,9.42,146.96,146.92,12.8232]
[1727179591763,9.42,146.97,146.92,12.8232]
[1727179592563,3.4031,146.94,146.92,9.42]
[1727179593762,3.4031,146.94,146.92,12.8233]
[1727179594472,3.4031,146.94,146.91,3.4035]
[1727179594656,3.4032,146.93,146.91,12.8235]
[1727179595161,3.4029,146.94,146.92,12.8233]
[1727179595465,3.4029,146.94,146.87,1.2428]
[1727179595466,12.90893428,146.98,146.93,9.42]
[1727179595658,3.4027,146.95,146.93,12.823]
[1727179600875,4.0504,146.99,146.94,9.42]
[1727179601075,4.0504,146.99,146.96,9.42]
[1727179601275,3.4019,146.98,146.96,9.42]
[1727179605379,3.4019,146.98,146.96,12.8224]
[1727179605583,3.4019,146.98,146.97,9.42]
[1727179606977,3.4018,146.99,146.97,9.42]
[1727179607173,63.20396908,147.03,146.97,12.822]
[1727179607581,3.4015,147.0,146.99,9.42]
[1727179607981,72.62396908,147.03,146.99,9.42]
[1727179608176,3.4014,147.01,146.99,9.42]
[1727179609277,3.4014,147.01,146.99,12.8216]
[1727179609982,9.42,147.02,146.97,9.42]
[1727179610375,1.3934,147.03,147.0,9.42]
[1727179611289,3.4012,147.01,147.0,9.42]
[1727179614982,9.42,147.02,146.92,4.0742]
[1727179615380,9.42,147.02,146.96,9.42]
[1727179615783,1.3934,147.03,146.97,9.42]
[1727179615983,10.8134,147.03,146.98,9.42]
[1727179616481,3.4017,147.0,146.98,9.42]
[1727179617489,3.4014,147.01,146.98,12.8218]
[1727179618086,2.7596,147.07,147.0,9.42]
[1727179618287,9.42,147.05,147.0,9.42]
[1727179618487,9.42,147.04,146.99,9.42]
[1727179618684,3.4014,147.01,146.99,9.42]
[1727179619994,3.4014,147.01,147.0,9.42]
[1727179620493,3.4011,147.02,147.0,9.42]
[1727179621996,3.4012,147.01,147.0,9.42]
[1727179631187,3.4012,147.01,146.99,3.4016]
[1727179631498,3.4012,147.01,147.0,9.42]
[1727179631692,3.4017,147.0,146.92,4.0742]
[1727179631893,9.42,147.04,146.99,9.42]
[1727179632090,9.42,147.05,147.01,9.42]
[1727179632391,3.401,147.02,147.01,9.42]
[1727179633897,9.42,147.03,146.92,7.49896008]
[1727179634097,9.42,147.03,147.0,9.42]
[1727179634297,3.4016,147.0,146.92,7.49896008]
[1727179634497,9.42,147.05,146.99,9.42]
[1727179635303,3.4015,147.0,146.99,9.42]
[1727179636002,3.4013,147.01,146.99,9.42]
[1727179638807,3.4015,147.0,146.99,9.42]
[1727179639001,9.42,147.02,146.92,7.49896008]
[1727179639213,9.42,146.99,146.92,2.8326]
[1727179639511,9.42,146.98,146.93,12.823]
[1727179639698,9.42,146.99,146.94,9.42]
[1727179639902,3.4024,146.96,146.94,9.42]
[1727179640406,3.4023,146.97,146.94,12.8227]
[1727179640602,9.42,147.0,146.95,9.42]
[1727179641001,3.4021,146.98,146.95,12.8225]
[1727179641507,3.4018,146.99,146.97,12.8221]
[1727179641707,3.4018,146.99,146.98,9.42]
[1727179642307,3.4021,146.98,146.96,9.42]
[1727179642808,9.42,147.0,146.96,9.42]
[1727179643205,3.4022,146.97,146.96,9.42]
[1727179643705,3.4018,146.99,146.96,9.42]
[1727179644113,10.787,147.01,146.96,9.42]
[1727179644611,10.787,147.01,146.96,12.8223]
[1727179645900,3.402,146.98,146.96,12.8223]
[1727179646602,3.402,146.98,146.96,9.42]
[1727179646812,3.402,146.98,146.95,12.8226]
[1727179649708,3.402,146.98,146.96,9.42]
[1727179650209,10.787,147.01,146.96,12.8222]
[1727179650210,3.4018,146.99,146.96,12.8222]
[1727179650514,68.50062376,147.05,146.98,9.42]
[1727179650714,73.31609744,147.05,147.0,9.42]
[1727179651616,3.4012,147.01,147.0,9.42]
[1727179653317,3.4011,147.02,147.0,12.8215]
[1727179653818,3.4011,147.02,147.0,9.42]
[1727179654408,9.42,147.04,146.99,9.42]
[1727179654609,9.42,147.03,146.99,9.42]
[1727179655009,63.89609744,147.05,146.99,9.42]
[1727179655214,9.42,147.03,146.99,9.42]
[1727179656113,3.4011,147.02,146.99,12.8217]
[1727179656618,3.4013,147.01,146.99,12.8217]
[1727179657617,9.42,147.03,147.0,3.4014]
[1727179657618,3.4011,147.02,147.0,3.4014]
[1727179657812,3.4011,147.02,146.99,9.42]
[1727179658612,3.4013,147.01,146.99,12.8216]
[1727179661010,3.4011,147.02,146.99,12.8216]
[1727179661215,69.88042376,147.05,147.0,9.42]
[1727179661420,60.46042376,147.05,147.01,9.42]
[1727179661917,3.4009,147.03,147.01,9.42]
[1727179662115,60.46042376,147.05,147.01,9.42]
[1727179662316,60.46042376,147.05,147.0,3.4013]
[1727179662317,3.401,147.02,147.0,3.4013]
[1727179662517,3.401,147.02,147.0,12.8213]
[1727179663023,3.4009,147.03,147.01,3.4012]
[1727179665114,3.4007,147.04,147.01,3.4012]
[1727179665315,60.46042376,147.05,147.0,9.42]
[1727179665723,3.4009,147.03,147.0,12.8213]
[1727179666923,3.4009,147.03,147.01,3.4012]
[1727179669222,3.4009,147.03,147.0,9.42]
[1727179669223,3.4006,147.04,147.02,12.8209]
[1727179669429,3.4006,147.04,147.02,9.42]
[1727179671530,3.4006,147.04,146.93,2.6308]
[1727179671531,69.88042376,147.05,146.93,2.6308]
[1727179671828,69.88042376,147.05,147.0,9.42]
[1727179672134,69.88042376,147.05,147.01,9.42]
[1727179672334,3.401,147.02,147.01,9.42]
[1727179672529,59.08062376,147.05,147.01,9.42]
[1727179672730,12.89046413,147.07,147.02,9.42]
[1727179672934,3.4007,147.04,147.03,9.42]
[1727179674342,3.4004,147.05,147.03,9.42]
[1727179675539,3.4004,147.05,146.94,6.50120095]
[1727179675540,3.4004,147.05,147.04,9.42]
[1727179679547,13.34920648,147.08,147.04,9.42]
[1727179679842,3.3997,147.08,147.07,9.42]
[1727179680649,14.21514881,147.12,147.07,9.42]
[1727179680650,13.34620185,147.11,147.07,9.42]
[1727179680854,14.21514881,147.12,147.08,9.42]
[1727179681248,2.6893,147.13,147.09,9.42]
[1727179681643,2.6893,147.13,147.08,3.3995]
[1727179681644,2.6893,147.13,147.08,12.8195]
[1727179681850,2.6893,147.13,147.08,9.42]
[1727179682251,1.3879,147.16,147.1,9.42]
[1727179682454,2.741,147.16,147.1,9.42]
[1727179682753,3.3989,147.11,147.1,9.42]
[1727179683749,3.3988,147.12,147.1,9.42]
[1727179684654,3.3989,147.11,147.1,9.42]
[1727179684950,9.42,147.15,147.1,9.42]
[1727179685254,3.3989,147.12,147.1,9.42]
[1727179685854,3.3986,147.13,147.11,9.42]
[1727179686153,1.3531,147.16,147.12,9.42]
[1727179686456,3.3985,147.13,147.12,9.42]
[1727179687252,3.3984,147.14,147.12,9.42]
[1727179687557,1.3531,147.16,147.02,12.91859312]
[1727179687755,1.3531,147.16,147.13,9.42]
[1727179689050,3.3982,147.14,147.13,9.42]
[1727179689250,3.3982,147.14,147.1,3.3991]
[1727179689451,3.3991,147.11,147.08,3.3996]
[1727179689756,9.42,147.14,147.09,9.42]
[1727179689956,9.42,147.14,147.1,9.42]
[1727179690154,3.3988,147.12,147.1,9.42]
[1727179691655,3.399,147.11,147.08,3.3995]
[1727179691851,3.399,147.11,147.09,9.42]
[1727179692154,9.42,147.14,147.09,9.42]
[1727179692355,3.3989,147.12,147.09,12.8194]
[1727179692859,3.3989,147.12,147.1,9.42]
[1727179698271,3.3986,147.13,147.1,12.819]
[1727179699765,3.3987,147.12,147.1,12.819]
[1727179702067,3.3987,147.12,147.1,9.42]
[1727179703470,9.42,147.12,147.02,6.11669312]
[1727179703660,9.42,147.11,147.06,9.42]
[1727179703971,3.3999,147.08,147.06,9.42]
[1727179704770,3.3993,147.1,147.07,12.8197]
[1727179705664,3.3994,147.09,147.07,12.8197]
[1727179706865,3.3994,147.09,147.07,9.42]
[1727179707071,3.3996,147.08,147.07,9.42]
[1727179707371,10.7799,147.11,147.07,9.42]
[1727179707971,3.3996,147.08,147.05,3.4002]
[1727179708169,10.7799,147.11,147.06,9.42]
[1727179708376,3.3999,147.07,147.02,2.6602]
[1727179708577,3.3999,147.07,147.05,9.42]
[1727179709273,3.3997,147.08,147.05,12.8202]
[1727179709475,9.42,147.1,147.05,12.8202]
[1727179709874,3.3998,147.08,147.05,12.8202]
[1727179711777,3.4,147.07,147.05,12.8202]
[1727179712466,3.4,147.07,147.05,3.4002]
[1727179712668,3.4,147.07,147.05,12.8202]
[1727179713574,9.42,147.06,146.96,1.4305]
[1727179713778,9.42,147.03,146.98,9.42]
[1727179714181,4.73829319,147.05,147.0,9.42]
[1727179714482,3.4007,147.04,147.01,12.8212]
[1727179714670,1.3553,147.05,147.02,9.42]
[1727179714976,4.7446,147.06,147.03,12.8207]
[1727179715172,1.3444,147.06,147.04,9.42]
[1727179715472,9.42,147.1,147.05,9.42]
[1727179715673,9.42,147.1,147.04,9.42]
[1727179715674,3.4,147.07,147.04,9.42]
[1727179715875,1.3919,147.11,147.04,9.42]
[1727179716080,9.42,147.09,147.04,9.42]
[1727179716276,3.4,147.07,147.04,12.8204]
[1727179717582,3.4,147.07,147.04,9.42]
[1727179717777,3.4002,147.06,146.97,1.2389]
[1727179717979,9.42,147.08,147.03,9.42]
[1727179718483,3.4003,147.06,147.03,9.42]
[1727179718885,3.4003,147.06,147.03,12.8207]
[1727179721880,3.4004,147.05,147.03,9.42]
[1727179722086,3.4004,147.05,147.02,3.401]
[1727179722282,3.4004,147.05,147.02,12.821]
[1727179723489,9.42,147.06,147.02,12.821]
[1727179723678,9.42,147.06,147.02,9.42]
[1727179723881,9.42,147.04,147.0,9.42]
[1727179724083,9.42,147.03,146.97,1.2389]
[1727179724282,9.42,147.03,146.98,9.42]
[1727179724283,12.8209,147.03,146.98,9.42]
[1727179724588,9.42,147.03,146.98,9.42]
[1727179724883,3.4013,147.01,146.98,9.42]
[1727179725188,9.42,147.02,147.0,3.4015]
[1727179725385,3.4009,147.03,147.0,3.4015]
[1727179726785,3.4011,147.02,146.99,3.4016]
[1727179726986,9.42,147.04,146.99,9.42]
[1727179727484,3.4009,147.03,147.0,3.4014]
[1727179727689,12.8209,147.03,147.0,3.4014]
[1727179729390,9.42,147.02,146.99,3.4016]
[1727179729790,12.8211,147.02,146.99,3.4016]
[1727179731087,3.4011,147.02,146.99,3.4016]
[1727179733788,12.8209,147.03,147.0,3.4015]
[1727179740489,3.4009,147.03,147.0,3.4015]
[1727179740793,12.8209,147.03,147.0,3.4015]
[1727179741385,12.8209,147.03,146.99,9.42]
[1727179741386,3.4011,147.02,146.99,3.4016]
[1727179741592,9.42,147.01,146.99,3.4016]
[1727179743694,9.42,147.01,146.95,92.35280748]
[1727179743695,9.42,147.01,146.98,3.4019]
[1727179743895,9.42,147.0,146.98,3.4019]
[1727179744296,3.4013,147.01,146.98,3.4019]
[1727179744492,3.4013,147.01,146.97,9.42]
[1727179744692,9.42,147.02,146.97,9.42]
[1727179744895,9.42,147.02,147.0,3.4013]
[1727179745295,4.8348,147.04,146.98,9.42]
[1727179745496,9.42,147.03,147.01,3.4011]
[1727179745794,9.42,147.02,146.97,9.42]
[1727179746095,3.4011,147.02,146.97,9.42]
[1727179746399,12.8211,147.02,146.97,9.42]
[1727179747792,12.8211,147.02,147.0,3.4015]
[1727179753500,9.42,147.02,147.01,3.4012]
[1727179758202,1.434,147.04,147.0,9.42]
[1727179758406,10.854,147.04,147.0,9.42]
[1727179758601,10.854,147.04,146.99,9.42]
[1727179758802,10.854,147.04,147.03,3.4008]
[1727179759003,9.42,147.04,146.99,9.42]
[1727179759397,9.42,147.04,147.02,3.4009]
[1727179760304,12.8206,147.04,147.02,3.4009]
[1727179763908,9.42,147.04,147.03,3.4008]
[1727179765508,9.42,147.04,146.95,92.35280748]
[1727179765709,9.42,147.01,146.95,92.35280748]
[1727179766006,9.42,147.01,146.99,3.4016]
[1727179766209,9.42,147.01,146.96,9.42]
[1727179766407,9.42,147.02,146.97,9.42]
[1727179766609,9.42,147.02,147.0,3.4013]
[1727179768112,9.42,147.02,147.01,3.4012]
[1727179776819,9.42,147.02,147.0,3.4014]
[1727179777625,12.8211,147.02,147.0,3.4014]
[1727179779417,3.4011,147.02,147.0,3.4014]
[1727179779615,9.42,147.02,147.0,3.4014]
[1727179780522,9.42,147.02,147.01,3.4012]
[1727179782124,9.42,147.03,147.02,3.401]
[1727179786524,9.42,147.03,146.95,92.35280748]
[1727179786525,12.8204,147.05,147.03,3.4007]
[1727179786826,9.42,147.05,147.01,9.42]
[1727179787227,9.42,147.04,146.99,9.42]
[1727179787419,12.8206,147.04,146.99,9.42]
[1727179788021,9.42,147.03,146.98,9.42]
[1727179788221,12.8209,147.03,147.01,3.4012]
[1727179788427,9.42,147.03,146.97,9.42]
[1727179789021,3.401,147.02,147.0,3.4013]
[1727179789931,12.8209,147.03,147.01,3.4012]
[1727179790530,9.42,147.03,147.01,3.4012]
[1727179791933,12.8208,147.03,147.01,3.4012]
[1727179792329,9.42,147.02,146.95,92.35280748]
[1727179792536,9.42,146.97,146.92,9.42]
[1727179792734,9.42,146.97,146.93,9.42]
[1727179793230,9.42,146.98,146.93,9.42]
[1727179793636,12.822,146.98,146.95,3.4025]
[1727179798045,3.402,146.98,146.95,3.4025]
[1727179798248,12.822,146.98,146.95,3.4025]
[1727179801346,12.8218,146.99,146.95,9.42]
[1727179801545,3.4018,146.99,146.95,9.42]
[1727179801846,3.4018,146.99,146.96,3.4024]
[1727179802047,9.42,146.98,146.96,3.4024]
[1727179802749,12.8222,146.98,146.95,3.4026]
[1727179803839,9.42,146.97,146.91,1.4059]
[1727179804040,9.42,146.94,146.9,2.6485]
[1727179804251,9.42,146.92,146.87,3.38756726]
[1727179804437,9.42,146.92,146.86,13.5243]
[1727179804643,9.42,146.92,146.88,9.42]
[1727179804847,3.403,146.94,146.91,3.4036]
[1727179805044,9.42,146.93,146.91,3.4036]
[1727179805253,12.823,146.94,146.88,9.42]
[1727179806144,3.4031,146.93,146.88,9.42]
[1727179806345,9.42,146.92,146.87,9.42]
[1727179806544,9.42,146.92,146.86,4.1043]
[1727179806745,3.403,146.94,146.9,9.42]
[1727179807957,3.403,146.94,146.91,3.4034]
[1727179808441,9.42,146.93,146.91,3.4034]
[1727179808643,9.42,146.92,146.86,7.4387682]
[1727179808853,9.42,146.91,146.86,16.8587682]
[1727179809152,9.42,146.91,146.89,3.4039]
[1727179809450,9.42,146.91,146.86,7.4387682]
[1727179809651,12.8236,146.91,146.88,3.404]
[1727179809953,12.8236,146.91,146.86,16.8587682]
[1727179810745,9.42,146.91,146.86,16.8587682]
[1727179811053,9.42,146.91,146.86,15.4812682]
[1727179811252,9.42,146.9,146.86,12.1468]
[1727179811449,9.42,146.88,146.85,92.41148977]
[1727179811654,9.42,146.86,146.8,4.0713]
[1727179811850,9.42,146.86,146.8,10.55490759]
[1727179812052,1.3498,146.92,146.81,9.42]
[1727179812253,12.8247,146.86,146.81,9.42]
[1727179812752,12.8247,146.86,146.83,3.4053]
[1727179813655,9.42,146.86,146.83,3.4053]
[1727179813850,9.42,146.86,146.84,3.4051]
[1727179815657,2.7279,146.92,146.8,2.6379]
[1727179815658,9.42,146.85,146.8,2.6379]
[1727179816155,9.42,146.85,146.8,12.0579]
[1727179817157,9.42,146.86,146.81,9.42]
[1727179817560,9.42,146.83,146.79,9.42]
[1727179817753,9.42,146.85,146.8,9.42]
[1727179818061,9.42,146.85,146.81,9.42]
[1727179818247,9.42,146.84,146.76,4.1993]
[1727179818451,9.42,146.84,146.79,9.42]
[1727179819157,9.42,146.84,146.81,3.4057]
[1727179819355,9.42,146.84,146.79,9.42]
[1727179819555,9.42,146.83,146.76,4.1993]
[1727179819754,12.8255,146.83,146.77,9.42]
[1727179820158,9.42,146.83,146.76,4.1993]
[1727179820363,9.42,146.81,146.79,3.4063]
[1727179822164,9.42,146.8,146.78,3.4064]
[1727179824060,9.42,146.8,146.79,3.4063]
[1727179825467,9.42,146.8,146.78,3.4065]
[1727179831863,9.42,146.8,146.79,3.4063]
[1727179832172,9.42,146.81,146.79,3.4063]
[1727179832966,9.42,146.8,146.78,3.4065]
[1727179833167,9.42,146.79,146.73,12.0992]
[1727179833362,9.42,146.76,146.73,3.4076]
[1727179833568,9.42,146.74,146.69,15.56760305]
[1727179833777,9.42,146.74,146.69,2.7435]
[1727179834066,9.42,146.75,146.69,15.50796148]
[1727179834273,9.42,146.75,146.71,101.77415794]
[1727179834973,9.42,146.75,146.74,3.4075]
[1727179835875,9.42,146.75,146.73,3.4077]
[1727179836173,9.42,146.74,146.69,2.7435]
[1727179836561,9.42,146.74,146.69,12.1635]
[1727179836966,9.42,146.75,146.73,3.4077]
[1727179837567,9.42,146.75,146.74,3.4075]
[1727179839272,9.42,146.75,146.69,95.25776609]
[1727179839273,12.8274,146.75,146.71,3.408]
[1727179839472,9.42,146.72,146.69,92.51426609]
[1727179840672,9.42,146.72,146.71,3.4082]
[1727179842768,9.42,146.72,146.7,3.4084]
[1727179842963,9.42,146.71,146.7,3.4084]
[1727179844078,9.42,146.71,146.69,95.92286609]
[1727179844271,9.42,146.7,146.69,95.92286609]
[1727179846767,9.42,146.71,146.7,3.4084]
[1727179852080,9.42,146.71,146.66,10.8035]
[1727179852281,9.42,146.69,146.66,1.3835]
[1727179852973,9.42,146.69,146.65,1.3131]
[1727179853386,9.42,146.68,146.64,9.42]
[1727179853678,9.42,146.68,146.61,2.7336]
[1727179853870,9.42,146.68,146.63,9.42]
[1727179854275,9.42,146.68,146.67,3.4091]
[1727179856678,9.42,146.68,146.66,3.4092]
[1727179856986,9.42,146.67,146.66,3.4092]
[1727179859977,9.42,146.68,146.63,101.97158145]
[1727179860184,9.42,146.71,146.66,9.42]
[1727179860691,9.42,146.71,146.69,3.4085]
[1727179861098,9.42,146.7,146.69,3.4085]
[1727179862690,9.42,146.71,146.66,9.42]
[1727179862888,9.42,146.71,146.67,9.42]
[1727179863089,10.7563,146.74,146.7,9.42]
[1727179863392,9.42,146.73,146.69,9.42]
[1727179863592,9.42,146.73,146.65,6.8191]
[1727179863787,9.42,146.73,146.68,9.42]
[1727179863989,1.3363,146.74,146.68,9.42]
[1727179863990,9.42,146.72,146.68,9.42]
[1727179864593,9.42,146.72,146.71,3.408]
[1727179864991,1.3363,146.74,146.68,9.42]
[1727179865194,9.42,146.73,146.69,9.42]
[1727179865596,9.42,146.73,146.68,9.42]
[1727179865990,2.7662,146.78,146.7,9.42]
[1727179866195,9.42,146.75,146.7,9.42]
[1727179866594,9.42,146.74,146.69,9.42]
[1727179866795,9.42,146.73,146.66,4.1335]
[1727179866995,9.42,146.73,146.67,9.42]
[1727179867394,3.4073,146.75,146.67,9.42]
[1727179867395,9.42,146.72,146.67,9.42]
[1727179867598,9.42,146.72,146.66,4.1335]
[1727179868007,9.42,146.72,146.67,9.42]
[1727179868201,9.42,146.72,146.71,3.4081]
[1727179869305,9.42,146.73,146.72,3.4078]
[1727179876207,9.42,146.73,146.71,3.4082]
[1727179876412,9.42,146.72,146.71,3.4082]
[1727179877809,9.42,146.72,146.7,3.4083]
[1727179878009,9.42,146.71,146.7,3.4083]
[1727179878408,9.42,146.71,146.63,92.55158145]
[1727179878607,9.42,146.67,146.63,92.55158145]
[1727179878912,9.42,146.65,146.63,92.55158145]
[1727179879214,9.42,146.65,146.64,3.4098]
[1727179880912,4.7171,146.7,146.66,3.4092]
[1727179881113,9.42,146.67,146.66,3.4092]
[1727179886610,9.42,146.7,146.66,9.42]
[1727179886817,9.42,146.7,146.61,2.8534]
[1727179886818,9.42,146.7,146.65,9.42]
[1727179887017,9.42,146.69,146.65,9.42]
[1727179887411,9.42,146.69,146.68,3.4087]
[1727179887613,1.3725,146.76,146.68,9.42]
[1727179888116,9.42,146.73,146.68,9.42]
[1727179889811,9.42,146.73,146.7,3.4082]
[1727179890613,9.42,146.73,146.71,3.4082]
[1727179893215,9.42,146.73,146.72,3.408]
[1727179893410,2.7305,146.77,146.72,9.42]
[1727179893614,10.7811,146.77,146.73,9.42]
[1727179893815,9.42,146.78,146.73,9.42]
[1727179894116,9.42,146.79,146.75,9.42]
[1727179894811,9.42,146.79,146.77,3.4066]
[1727179897413,1.3585,146.81,146.8,3.4061]
[1727179897614,9.42,146.81,146.77,9.42]
[1727179897811,9.42,146.82,146.78,9.42]
[1727179898211,9.42,146.82,146.79,3.4063]
[1727179898422,9.42,146.82,146.78,9.42]
[1727179898925,9.42,146.82,146.79,3.4063]
[1727179899321,9.42,146.81,146.79,3.4063]
[1727179907522,3.32571259,146.85,146.8,3.4061]
[1727179907729,9.42,146.82,146.8,3.4061]
[1727179911028,3.4052,146.84,146.78,9.42]
[1727179911229,9.42,146.83,146.78,9.42]
[1727179911628,9.42,146.83,146.81,3.4059]
[1727179912033,2.7252,146.86,146.8,9.42]
[1727179912221,1.3179,146.86,146.82,9.42]
[1727179912426,9.42,146.87,146.82,9.42]
[1727179912732,68.56729809,146.88,146.83,9.42]
[1727179913423,68.56729809,146.88,146.84,9.42]
[1727179913424,59.14729809,146.88,146.84,9.42]
[1727179913828,59.14729809,146.88,146.86,3.4046]
[1727179914022,9.42,146.89,146.84,9.42]
[1727179914430,9.42,146.89,146.86,3.4046]
[1727179914623,9.42,146.89,146.84,9.42]
[1727179915725,9.42,146.89,146.86,3.4046]
[1727179916128,9.42,146.89,146.87,3.4045]
[1727179918236,12.8238,146.9,146.87,3.4045]
[1727179924344,9.42,146.88,146.82,2.8394]
[1727179924547,9.42,146.86,146.78,3.46025475]
[1727179924846,7.59324171,146.92,146.79,9.42]
[1727179924847,9.42,146.84,146.79,9.42]
[1727179925435,9.42,146.84,146.81,3.4057]
[1727179926542,12.8253,146.84,146.81,3.4057]
[1727179926943,12.8253,146.84,146.8,3.406]
[1727179927146,9.42,146.83,146.8,3.406]
[1727179927343,3.4055,146.83,146.77,10.7308]
[1727179927543,9.42,146.82,146.79,3.4062]
[1727179927743,9.42,146.82,146.77,10.7308]
[1727179928547,9.42,146.82,146.79,3.4061]
[1727179929347,12.8255,146.83,146.8,3.4061]
[1727179929949,12.8255,146.83,146.79,3.4062]
[1727179931745,12.8259,146.81,146.76,1.315]